Workbook

Sheet Intune
G1: Windows Intune ROI Calculator | S1: Column C | U1: Column E | W1: Column G
J2: Selection | K2: Data | N2: Calculations | S2: Reset Values
B5: To enable macros or to select a lower security level:
B6: • In Excel 2003, go to Tools > Options > Security > Macro Security • In Excel 2007, go to Office Icon>Excel Options>Trust Center>Trust Center Settings • In Excel 2010, go to File>Help>Options>Trust Center>Trust Center Settings • In Excel 2007/2010, you can also enable macros from the Options button in the Security Warning bar visible on opening the file
B7: Windows Intune simplifies and helps businesses manage and secure PCs using Windows cloud services and Windows 7 Enterprise — so your computers and users can operate at peak performance from virtually anywhere. With cloud services, you get a comprehensive desktop solution with a low up-front investment and predictable (monthly, per PC) billing that helps keep your finances under control. Windows Intune licensing also includes upgrade rights to the latest versions of Windows client operating system. Together Windows Intune and Windows 7 Enterprise help businesses improve end-user productivity and optimize IT labor costs. | K7: Source: IDC white paper
B8: To see how your organization can benefit from Windows Intune, answer the questions below: | K8: 1) A first look at how Windows Intune can lower costs and raise productivity
B9: Section 1: Company Profile | K9: 2) The Benefit of Using Windows 7 in Small and Medium-Sized Businesses
A11: 1 | B11: Number of clients managed using Windows Intune | E11: 100 | U11: 100
A12: 2 | B12: Percent of clients that are using Windows 7 operating system | E12: 10 | J12: Selection | U12: 10
A13: 3 | B13: ="Will you consider deploying Windows 7"&IF(Percentage_Win7>0," to the rest of your clients","")&"? (check if yes)" -> Will you consider deploying Windows 7 to the rest of your clients? (check if yes) | E13: TRUE | J13: =IF($E$13,1,0) -> 1 | N13: Hourly | U13: TRUE
A14: 4 | B14: Average annual fully-burdened cost per IT Staff | E14: 90240 | N14: =ROUND(Salary_Annual_IT_Staff/Work_Hrs_per_Year,0) -> 48 | U14: 90240
A15: 5 | B15: Average annual fully-burdened cost per end-user | E15: 76256 | N15: =ROUND(Salary_Annual_EndUser/Work_Hrs_per_Year,0) -> 41 | U15: 76256
A16: 6 | B16: Work hours per week | E16: 37.5 | U16: 37.5
A17: 7 | B17: Work weeks per year | E17: 50 | U17: 50
B18: Hours in a work-year | E18: =Work_Hrs_per_Week*Work_Weeks_per_Yr -> 1875 | U18: =Work_Hrs_per_Week*Work_Weeks_per_Yr -> 1875
B20: Section 2 : IT Cost Savings
B22: IT Labor Savings - Administrative Labor
B23: Windows Intune provides a central, cloud-based solution for PC management and security to help IT professionals manage todays increasingly complex and distributed workforce. Listed below are commonly realized IT administrative benefits for organizations using Windows Intune.
B24: Which of the following IT time saving benefits do you expect to realize by adopting Windows Intune? (check all that apply) | J24: Selection | M24: Savings ($) | N24: Savings (Hrs.) | O24: Savings (Hrs.)
A25: 8 | B25: Ensuring constant configuration across all PCs | E25: TRUE | J25: =IF($E$25,1,0) -> 1 | M25: 88 | N25: 1.8 | O25: =M25/48 -> 1.833333333 | U25: TRUE
A26: 9 | B26: Performing patch management and update deployment | E26: TRUE | J26: =IF($E$26,1,0) -> 1 | M26: 63 | N26: 1.3 | O26: =M26/48 -> 1.3125 | U26: TRUE
A27: 10 | B27: Conducting security and firewall-related activities | E27: TRUE | J27: =IF($E$27,1,0) -> 1 | M27: =37+4 -> 41 | N27: 0.9 | O27: 0.8541666667 | U27: TRUE
A28: 11 | B28: Troubleshoot/repair | E28: TRUE | J28: =IF($E$28,1,0) -> 1 | M28: 28 | N28: 0.6 | O28: 0.5833333333 | U28: TRUE
A29: 12 | B29: Managing and updating remote or mobile users | E29: TRUE | J29: =IF($E$29,1,0) -> 1 | M29: =23+14 -> 37 | N29: 0.8 | O29: 0.7708333333 | U29: TRUE
A30: 13 | B30: Asset management | E30: TRUE | J30: =IF($E$30,1,0) -> 1 | M30: 10 | N30: 0.2 | O30: 0.2083333333 | U30: TRUE
E31: Savings (per PC) | G31: Savings (all PCs) | U31: Savings (per PC) | W31: Savings (all PCs)
B32: Expected administrative labor saved with Windows Intune | E32: =ROUND(SUMPRODUCT($J$25:$J$30,$N$25:$N$30),1) -> 5.6 | U32: =ROUND(SUMPRODUCT($J$25:$J$30,$N$25:$N$30),1) -> 5.6
E33: =ROUND($E$32*Salary_Hourly_IT_Staff,0) -> 269 | G33: =ROUND($E$33*Number_Clients,0) -> 26900 | U33: =ROUND($E$32*Salary_Hourly_IT_Staff,0) -> 269 | W33: =ROUND($E$33*Number_Clients,0) -> 26900
B35: IT Labor Savings - Downtime Labor
B36: Windows Intune drives proactive IT management to help prevent downtime. This reduces the substantial costs associated with remediation of PCs that are not working. Listed below are downtime related benefits realized by organizations using Windows Intune.
B37: Which of the following IT time saving benefits do you expect to realize by adopting Windows Intune? (check all that apply) | J37: Selection | K37: w/o Intune ($) | L37: w/ Intune ($) | M37: Savings (%) | N37: Savings (Hrs.) | O37: Savings (Hrs.)
A38: 14 | B38: Reduced IT staff labor effort to repair down systems | E38: TRUE | J38: =IF($E$38,1,0) -> 1 | K38: 175 | L38: 26 | M38: =1-L38/K38 -> 0.8514285714 | N38: 3.1 | O38: =K38*M38/48 -> 3.104166667 | U38: TRUE
A39: 15 | B39: Reduced IT staff travel hours to repair remote PCs | E39: TRUE | J39: =IF($E$39,1,0) -> 1 | K39: 83 | L39: 21 | M39: =1-L39/K39 -> 0.7469879518 | N39: 1.29 | O39: =K39*M39/48 -> 1.291666667 | U39: TRUE
A40: 16 | B40: Reduced IT labor effort in fixing spyware issues | E40: TRUE | J40: =IF($E$40,1,0) -> 1 | K40: 21 | L40: 4 | M40: =1-L40/K40 -> 0.8095238095 | N40: 0.35 | O40: 0.3541666667 | U40: TRUE
E41: Savings (per PC) | G41: Savings (all PCs) | U41: Savings (per PC) | W41: Savings (all PCs)
B42: Expected IT staff savings from reduced downtime | E42: =ROUND(SUMPRODUCT($J$38:$J$40,$N$38:$N$40),1) -> 4.7 | U42: =ROUND(SUMPRODUCT($J$38:$J$40,$N$38:$N$40),1) -> 4.7
E43: =ROUND($E$42*Salary_Hourly_IT_Staff,0) -> 226 | G43: =ROUND($E$43*Number_Clients,0) -> 22600 | U43: =ROUND($E$42*Salary_Hourly_IT_Staff,0) -> 226 | W43: =ROUND($E$43*Number_Clients,0) -> 22600
B45: IT Labor Savings - Help Desk Incidents
B46: Organizations are able to cut down on the number and variety of problems (including PC performance issues, software compatibility, access issues, and upgrades) by automating PC management functions and standardizing their desktop configurations. This results in fewer help desk calls with more issues being resolved by first-level responders.
B47: Do you expect the following IT time saving benefit by adopting Windows Intune? (check if applicable) | J47: Selection | K47: w/o Intune ($) | L47: w/ Intune ($) | M47: Savings (%) | N47: Savings (Hrs.) | O47: Savings (Hrs.)
A48: 17 | B48: Reduced IT staff labor hours related to help desk incidents | E48: TRUE | J48: =IF($E$48,1,0) -> 1 | K48: 25 | L48: 16 | M48: =1-L48/K48 -> 0.36 | N48: 0.19 | O48: =K48*M48/48 -> 0.1875 | U48: TRUE
E49: Savings (per PC) | G49: Savings (all PCs) | U49: Savings (per PC) | W49: Savings (all PCs)
B50: Expected IT staff savings from reduced help desk incidents | E50: =ROUND($J$48*$N$48,1) -> 0.2 | U50: =ROUND($J$48*$N$48,1) -> 0.2
E51: =ROUND($E$50*Salary_Hourly_IT_Staff,0) -> 10 | G51: =ROUND($E$51*Number_Clients,0) -> 1000 | U51: =ROUND($E$50*Salary_Hourly_IT_Staff,0) -> 10 | W51: =ROUND($E$51*Number_Clients,0) -> 1000
B53: IT Labor Savings - Compliance Labor
B54: Windows Intune enables IT staff to run reports to identify installed software applications and hardware inventory. The ability to efficiently manage, report, and track software and hardware assets across the organization minimizes the effort needed to meet compliance requirements.
B55: Do you expect the following IT time saving benefit by adopting Windows Intune? (check if applicable) | J55: Selection | K55: w/o Intune ($) | L55: w/ Intune ($) | M55: Savings (%) | N55: Savings (Hrs.) | O55: Savings (Hrs.)
A56: 18 | B56: Reduced IT staff labor effort in meeting compliance requirements | E56: TRUE | J56: =IF($E$56,1,0) -> 1 | M56: 17 | N56: 0.4 | O56: =M56/48 -> 0.3541666667 | U56: TRUE
E57: Savings (per PC) | G57: Savings (all PCs) | U57: Savings (per PC) | W57: Savings (all PCs)
B58: Expected savings from reduced compliance labor requirements | E58: =ROUND($J$56*$N$56,1) -> 0.4 | U58: =ROUND($J$56*$N$56,1) -> 0.4
E59: =ROUND($E$58*Salary_Hourly_IT_Staff,0) -> 19 | G59: =ROUND($E$59*Number_Clients,0) -> 1900 | U59: =ROUND($E$58*Salary_Hourly_IT_Staff,0) -> 19 | W59: =ROUND($E$59*Number_Clients,0) -> 1900
B61: Eliminating Other Solutions
B62: Many companies rely on different third-party solutions for systems, security, and asset management functionalities. Windows Intune provides a single consolidated solution that eliminates the need to buy and maintain multiple third-party tools, leading to significant cost savings.
B63: Do you expect the following cost savings benefit by adopting Windows Intune? (check if applicable) | J63: Selection | M63: Savings ($) | N63: Savings ($)
A64: 19 | B64: Eliminate third-party software solutions | E64: TRUE | J64: =IF($E$64,1,0) -> 1 | M64: 118 | N64: =M64 -> 118 | U64: TRUE
E65: Savings (per PC) | G65: Savings (all PCs) | U65: Savings (per PC) | W65: Savings (all PCs)
B66: Expected cost savings by eliminating third-party solutions | E66: =ROUND($J$64*$N$64,1) -> 118 | U66: =ROUND($J$64*$N$64,1) -> 118
E67: =$E$66 -> 118 | G67: =ROUND($E$67*Number_Clients,0) -> 11800 | U67: =$E$66 -> 118 | W67: =ROUND($E$67*Number_Clients,0) -> 11800
B69: Section 3: End-user Productivity
B70: Windows Intune and Windows 7 improve end-user productivity by reducing the time that users do not have access to applications (downtime due to outages and help desk issues). With older operating systems, considerable time is lost in user self-support activities (e.g. reboots to solve a problem). Downtime, impact of spyware and malware, software updates also add to the lost productive hours. However, Windows Intune and Windows 7 improve on these tasks and benefits end-users by reducing downtime and the burden of servicing outdated products. This reduction in downtime leads to additional productive hours, which would otherwise be wasted. New productivity features of Windows 7 (such as improved sleep/hibernate recovery, taskbar thumbnails, preview panes, better diagnostics, problem step recorder, IE9, etc.) also add to the time savings.
B71: Which of the following end-user productivity benefits do you expect to realize by adopting Windows Intune? (check all that apply) | J71: Selection | K71: w/o Intune ($) | L71: w/ Intune ($) | M71: Savings (%) | N71: Savings (Hrs.)
A72: 20 | B72: Reduced employee downtime | E72: TRUE | J72: =IF($E$72,1,0) -> 1 | M72: 63 | N72: 1.54 | O72: =M72/41 -> 1.536585366 | U72: TRUE
A73: 21 | B73: New operating system (Windows 7) productivity features | E73: TRUE | J73: =IF($E$73,1,0) -> 1 | M73: 163 | N73: 3.98 | O73: =M73/41 -> 3.975609756 | U73: TRUE
B74: =IF(Percentage_Win7=100,"Benefit not added as all clients are already on Windows 7","Select 'Yes' to Question 3, above, to consider potential benefits from Windows 7") -> Select 'Yes' to Question 3, above, to consider potential benefits from Windows 7
E75: Savings (per PC) | G75: Savings (all PCs) | U75: Savings (per PC) | W75: Savings (all PCs)
B76: Expected average end-user productivity savings | E76: =ROUND($J$72*$N$72+$J$73*$N$73*(1-Percentage_Win7/100)*Upgrade_OS,1) -> 5.1 | U76: =ROUND($J$72*$N$72+$J$73*$N$73*(1-Percentage_Win7/100)*Upgrade_OS,1) -> 5.1
E77: =ROUND($E$76*Salary_Hourly_EndUser,0) -> 209 | G77: =ROUND($E$77*Number_Clients,0) -> 20900 | U77: =ROUND($E$76*Salary_Hourly_EndUser,0) -> 209 | W77: =ROUND($E$77*Number_Clients,0) -> 20900
B79: Section 4 : Investment
B80: This section captures the total cost of deploying Windows Intune and Windows 7 in your organization. The cost elements include the annual license costs, one-time deployment effort, and other one-time costs related to consulting, training, etc.
C81: (per PC) | E81: (per PC) | G81: (all PCs) | S81: (per PC) | U81: (per PC) | W81: (all PCs)
A82: 22 | B82: Intune License costs (per month) | E82: =11 -> 11 | G82: =ROUND($E$82*Number_Clients,0) -> 1100 | U82: =11 -> 11 | W82: =ROUND($E$82*Number_Clients,0) -> 1100
B83: Intune annual license costs | E83: =ROUND($G$83/Number_Clients,0) -> 132 | G83: =ROUND($G$82*12,0) -> 13200 | U83: =ROUND($G$83/Number_Clients,0) -> 132 | W83: =ROUND($G$82*12,0) -> 13200
A84: 23 | B84: Expected Intune deployment effort (one time) | C84: 0.5 | E84: =ROUND($G$84/Number_Clients,0) -> 45 | G84: =ROUND($C$84*(Salary_Hourly_EndUser+Salary_Hourly_IT_Staff)*Number_Clients,0) -> 4450 | S84: 0.5 | U84: =ROUND($G$84/Number_Clients,0) -> 45 | W84: =ROUND($C$84*(Salary_Hourly_EndUser+Salary_Hourly_IT_Staff)*Number_Clients,0) -> 4450
A85: 24 | B85: Expected Windows 7 deployment effort (one time) | C85: 2 | E85: =ROUND($G$85/Number_Clients,0) -> 160 | G85: =ROUND($C$85*(Salary_Hourly_IT_Staff+Salary_Hourly_EndUser)*Number_Clients*(1-Percentage_Win7/100)*Upgrade_OS,0) -> 16020 | S85: 2 | U85: =ROUND($G$85/Number_Clients,0) -> 160 | W85: =ROUND($C$85*(Salary_Hourly_IT_Staff+Salary_Hourly_EndUser)*Number_Clients*(1-Percentage_Win7/100)*Upgrade_OS,0) -> 16020
A86: 25 | B86: Other costs (consulting, training, etc.) | C86: 30 | E86: =ROUND($G$86/Number_Clients,0) -> 61 | G86: =ROUND($C$86/100*($G$84+$G$85),0) -> 6141 | S86: 30 | U86: =ROUND($G$86/Number_Clients,0) -> 61 | W86: =ROUND($C$86/100*($G$84+$G$85),0) -> 6141
B88: Section 5 : Benefits Summary
B89: Following section provides a summary of financial metrics, costs, and benefits based upon the information entered above. | N89: Cash flow calculation
E90: (per PC) | G90: (all PCs) | N90: Year | O90: 0 | P90: 1 | Q90: 2 | R90: 3 | U90: (per PC) | W90: (all PCs)
B91: Total One-time Costs (Year 0) | E91: =ROUND($G$91/Number_Clients,0) -> 266 | G91: =ROUND(SUM($G$84,$G$85,$G$86),0) -> 26611 | N91: Benefits | P91: =G92 -> 85100 | Q91: =G92 -> 85100 | R91: =G92 -> 85100 | U91: =ROUND($G$91/Number_Clients,0) -> 266 | W91: =ROUND(SUM($G$84,$G$85,$G$86),0) -> 26611
B92: Total Annual Benefits | E92: =ROUND($G$92/Number_Clients,0) -> 851 | G92: =ROUND(SUM($G$33,$G$43,$G$51,$G$59,$G$67,$G$77),0) -> 85100 | N92: Cost | O92: =G91 -> 26611 | P92: =G93 -> 13200 | Q92: =G93 -> 13200 | R92: =G93 -> 13200 | U92: =ROUND($G$92/Number_Clients,0) -> 851 | W92: =ROUND(SUM($G$33,$G$43,$G$51,$G$59,$G$67,$G$77),0) -> 85100
B93: Total Annual Costs | E93: =ROUND($G$93/Number_Clients,0) -> 132 | G93: =ROUND($G$83,0) -> 13200 | N93: Cash flow (CF) | O93: =O91-O92 -> -26611 | P93: =P91-P92 -> 71900 | Q93: =Q91-Q92 -> 71900 | R93: =R91-R92 -> 71900 | U93: =ROUND($G$93/Number_Clients,0) -> 132 | W93: =ROUND($G$83,0) -> 13200
A95: 26 | B95: Discount rate for Net Present Value (NPV) calculation | E95: 10 | N95: Discounted CF | O95: =O93 -> -26611 | P95: =P93/(1+$E$95/100)^P90 -> 65363.63636 | Q95: =Q93/(1+$E$95/100)^Q90 -> 59421.4876 | R95: =R93/(1+$E$95/100)^R90 -> 54019.53418 | U95: 10
B98: Results | N98: NPV | O98: =SUM(O95:R95) -> 152193.6582
B100: Based on the inputs, you can expect Net Annual Benefits of | C100: =$G$92-$G$93 -> 71900 | D100: or | E100: =$C$100/Number_Clients -> 719 | F100: per PC. | S100: =$G$92-$G$93 -> 71900 | U100: =$C$100/Number_Clients -> 719
B102: The benefits are realized from the total IT time savings of | C102: =($G$33+$G$43+$G$51+$G$59)/Salary_Hourly_IT_Staff -> 1091.666667 | D102: or | E102: =$C$102/Number_Clients -> 10.91666667 | F102: per PC | S102: =($G$33+$G$43+$G$51+$G$59)/Salary_Hourly_IT_Staff -> 1091.666667 | U102: =$C$102/Number_Clients -> 10.91666667
B103: and total end-user time savings of | C103: =$G$77/Salary_Hourly_EndUser -> 509.7560976 | D103: or | E103: =$C$103/Number_Clients -> 5.097560976 | F103: per PC. | S103: =$G$77/Salary_Hourly_EndUser -> 509.7560976 | U103: =$C$103/Number_Clients -> 5.097560976
B106: The calculated Net Present Value (NPV) for 3 years is | C106: =NPV($E$95/100,$P$93:$R$93)+$O$93 -> 152193.6582 | D106: or | E106: =$C$106/Number_Clients -> 1521.936582 | F106: per PC, | S106: =NPV($E$95/100,$P$93:$R$93)+$O$93 -> 152193.6582 | U106: =$C$106/Number_Clients -> 1521.936582
B108: with an expected payback period of | C108: =IF(-$O$93/($P$93/12)<0,"NA",-$O$93/($P$93/12)) -> 4.441335188 | D108: for your investment. | S108: =IF(-$O$93/($P$93/12)<0,"NA",-$O$93/($P$93/12)) -> 4.441335188
B111: * Not every customer will realize all of the benefits or incur all of the costs. *
B113: Section 6 : Resources/Links
B114: This Tool provides a quick business case for deploying Windows Intune and Windows 7 across your organization. The default benefits expressed here are based on independent research carried out on early-adopter customers and same may not be realized for all customers. The Tool does not fully take into account potential Windows 7 benefits related to IT labor hour savings and increased end-user productivity.
B115: To understand all product benefits and to learn more about the Windows Intune and new Windows 7 features, consider reviewing these resources or contacting an experienced IT partner close to you.
B116: =HYPERLINK("http://www.windowsintune.com/","Learn more about Windows Intune") -> Learn more about Windows Intune | C116: =HYPERLINK("http://www.microsoft.com/windows/enterprise/products/windows-7/default.aspx","Learn more about Windows 7 Enterprise") -> Learn more about Windows 7 Enterprise
B117: =HYPERLINK("http://technet.microsoft.com/en-us/windows/ff472080.aspx?ITPID=mscomgl","Windows Intune on TechNet") -> Windows Intune on TechNet | C117: =HYPERLINK("www.microsoft.com/presspass/presskits/cloud/docs/IntuneWP.pdf","IDC white paper: Windows Intune benefits") -> IDC white paper: Windows Intune benefits
B118: =HYPERLINK("http://www.microsoft.com/windows/windowsintune/pc-management-case-studies.aspx","Hear what customers and partners are saying") -> Hear what customers and partners are saying | C118: =HYPERLINK("http://www.techrepublic.com/whitepapers/the-benefit-of-using-windows-7-in-small-and-medium-sized-businesses/2220687","IDC white paper: Windows 7 benefits (subscription required)") -> IDC white paper: Windows 7 benefits (subscription required)
B119: =HYPERLINK("http://onlinehelp.microsoft.com/en-us/windowsintune/default.aspx","Windows Intune Online Help") -> Windows Intune Online Help | C119: =HYPERLINK("http://pinpoint.microsoft.com/en-US/companies/search?q=%22Designated%20Windows%20Intune%20Black%20Belt%22&WT.mc_id=en-US_CP_Deeplink_WindowsIntune_2SR_BlackBelt","Find an experienced IT partner") -> Find an experienced IT partner
B122: Version: 1.0 Date: June 2011
B124: © 2011 Microsoft Corporation. All rights reserved. The results generated by this tool are illustrative and only intended for your internal use for purposes of providing a framework for discussions regarding potential costs and benefits of deploying Windows Intune. Prices may vary by reseller and channel. The results may not be accurate or appropriate for your needs and should not be relied upon as your sole reference. Contact an authorized Microsoft sales representative for complete information. MICROSOFT MAKES NO WARRANTIES OF ANY KIND, EXPRESS OR IMPLIED, ABOUT THE THIS TOOL, INFORMATION OR MATERIALS PROVIDED WITH THIS TOOL, OR RESULTS GENERATED BY THE TOOL.
